fUSD/lending_fUSD_20250826
["ID","MTS","AMOUNT","RATE_DAILY","PERIOD"]
[381407593,1756187453590,-1083.28,0.00016438,2]
[381407594,1756187453600,-151.0,0.00016438,2]
[381407595,1756187453609,-400.0,0.00016438,2]
[381407596,1756187453618,-186.932468,0.00016438,2]
[381407597,1756187453629,-400.0,0.00016438,2]
[381407598,1756187453639,-932.75,0.00016438,2]
[381407599,1756187453648,-400.0,0.00016438,2]
[381407600,1756187453657,-151.0,0.00016438,2]
[381407601,1756187453667,-151.0,0.00016438,2]
[381407602,1756187453676,-400.0,0.00016438,2]
[381407603,1756187453686,-400.0,0.00016438,2]
[381407604,1756187453695,-151.0,0.00016438,2]
[381407605,1756187453704,-400.0,0.00016438,2]
[381407606,1756187453714,-151.0,0.00016438,2]
[381407607,1756187453724,-151.0,0.00016438,2]
[381407608,1756187453733,-151.0,0.00016438,2]
[381407609,1756187453742,-400.0,0.00016438,2]
[381407610,1756187453752,-400.0,0.00016438,2]
[381407611,1756187453762,-400.0,0.00016438,2]
[381407612,1756187453772,-151.0,0.00016438,2]
[381407613,1756187453781,-400.0,0.00016438,2]
[381407614,1756187453790,-151.0,0.00016438,2]
[381407615,1756187453800,-400.0,0.00016438,2]
[381407616,1756187453810,-400.0,0.00016438,2]
[381407617,1756187453819,-151.0,0.00016438,2]
[381407618,1756187453829,-400.0,0.00016438,2]
[381407619,1756187453839,-262.617441,0.00016438,2]
[381407620,1756187453849,-400.0,0.00016438,2]
[381407621,1756187453858,-400.0,0.00016438,2]
[381407622,1756187453868,-400.0,0.00016438,2]
[381407623,1756187453877,-400.0,0.00016438,2]
[381407624,1756187453886,-400.0,0.00016438,2]
[381407625,1756187453896,-400.0,0.00016438,2]
[381407626,1756187453905,-490.22,0.00016438,2]
[381407627,1756187453914,-400.0,0.00016438,2]
[381407628,1756187453923,-400.0,0.00016438,2]
[381407629,1756187453935,-400.0,0.00016438,2]
[381407630,1756187453944,-400.0,0.00016438,2]
[381407631,1756187453954,-400.0,0.00016438,2]
[381407632,1756187453963,-400.0,0.00016438,2]
[381407633,1756187453973,-593.27,0.00016438,2]
[381407634,1756187453984,-460.16,0.00016438,2]
[381407635,1756187453993,-400.0,0.00016438,2]
[381407636,1756187454002,-1692.63,0.00016438,2]
[381407637,1756187454012,-1258.34,0.00016438,2]
[381407638,1756187454022,-400.0,0.00016438,2]
[381407639,1756187454031,-510.99,0.00016438,2]
[381407640,1756187454041,-799.25,0.00016438,2]
[381407641,1756187454051,-692.0,0.00016438,2]
[381407642,1756187454061,-400.0,0.00016438,2]
[381407643,1756187454071,-2353.27,0.00016438,2]
[381407644,1756187454080,-1052.4,0.00016438,2]
[381407645,1756187454091,-400.0,0.00016438,2]
[381407646,1756187454100,-400.0,0.00016438,2]
[381407647,1756187454109,-1186.62,0.00016438,2]
[381407648,1756187454119,-424.43,0.00016438,2]
[381407649,1756187454128,-1501.15,0.00016438,2]
[381407650,1756187454138,-400.0,0.00016438,2]
[381407651,1756187454149,-400.0,0.00016438,2]
[381407652,1756187454159,-400.0,0.00016438,2]
[381407653,1756187454171,-151.0,0.00016438,2]
[381407654,1756187454183,-1083.08,0.00016438,2]
[381407655,1756187454193,-151.0,0.00016438,2]
[381407656,1756187454204,-812.31,0.00016438,2]
[381407657,1756187454213,-151.0,0.00016438,2]
[381407658,1756187454223,-151.0,0.00016438,2]
[381407659,1756187454234,-1204.1,0.00016438,2]
[381407660,1756187454243,-400.0,0.00016438,2]
[381407661,1756187454253,-400.0,0.00016438,2]
[381407662,1756187454263,-400.0,0.00016438,2]
[381407663,1756187454274,-151.0,0.00016438,2]
[381407664,1756187454283,-151.0,0.00016438,2]
[381407665,1756187454295,-151.0,0.00016438,2]
[381407666,1756187454307,-403.09,0.00016438,2]
[381407667,1756187454316,-400.0,0.00016438,2]
[381407668,1756187454326,-400.61922981,0.00016438,2]
[381407669,1756187454335,-939.76,0.00016438,2]
[381407670,1756187454345,-681.06,0.00016438,2]
[381407671,1756187454354,-1757.48,0.00016438,2]
[381407672,1756187454363,-1245.51,0.00016438,2]
[381407673,1756187454373,-400.71604396,0.00016438,2]
[381407674,1756187454382,-400.0,0.00016438,2]
[381407675,1756187454392,-716.43,0.00016438,2]
[381407676,1756187454401,-854.07,0.00016438,2]
[381407677,1756187454411,-400.0,0.00016438,2]
[381407678,1756187454420,-1039.97,0.00016438,2]
[381407679,1756187454429,-726.63,0.00016438,2]
[381407680,1756187454440,-400.0,0.00016438,2]
[381407681,1756187454450,-1100.46,0.00016438,2]
[381407682,1756187454462,-785.3,0.00016438,2]
[381407683,1756187454472,-400.0,0.00016438,2]
[381407684,1756187454483,-640.38,0.00016438,2]
[381407685,1756187454493,-500.0,0.00016438,2]
[381407686,1756187454502,-500.0,0.00016438,2]
[381407687,1756187454512,-151.0,0.00016438,2]
[381407688,1756187454521,-813.95,0.00016438,2]
[381407689,1756187454531,-500.0,0.00016438,2]
[381407690,1756187454541,-400.0,0.00016438,2]
[381407691,1756187454551,-500.0,0.00016438,2]
[381407692,1756187454560,-500.0,0.00016438,2]
[381407693,1756187454570,-1334.3,0.00016438,2]
[381407694,1756187454580,-500.0,0.00016438,2]
[381407695,1756187454594,-933.55,0.00016438,2]
[381407696,1756187454603,-1314.36,0.00016438,2]
[381407697,1756187454613,-452.06,0.00016438,2]
[381407698,1756187454627,-151.0,0.00016438,2]
[381407699,1756187454643,-400.0,0.00016438,2]
[381407700,1756187454652,-500.0,0.00016438,2]
[381407701,1756187454662,-151.0,0.00016438,2]
[381407702,1756187454672,-500.0,0.00016438,2]
[381407703,1756187454682,-151.0,0.00016438,2]
[381407704,1756187454691,-151.0,0.00016438,2]
[381407705,1756187454701,-500.0,0.00016438,2]
[381407706,1756187454711,-1107.69,0.00016438,2]
[381407707,1756187454721,-500.0,0.00016438,2]
[381407708,1756187454731,-151.713205,0.00016438,2]
[381407709,1756187454741,-500.0,0.00016438,2]
[381407710,1756187454751,-500.0,0.00016438,2]
[381407711,1756187454761,-500.0,0.00016438,2]
[381407712,1756187454771,-500.0,0.00016438,2]
[381407713,1756187454782,-151.0,0.00016438,2]
[381407714,1756187454792,-500.0,0.00016438,2]
[381407715,1756187454801,-500.0,0.00016438,2]
[381407716,1756187454811,-500.0,0.00016438,2]
[381407717,1756187454821,-151.0,0.00016438,2]
[381407718,1756187454831,-500.0,0.00016438,2]
[381407719,1756187454840,-1567.91,0.00016438,2]
[381407720,1756187454850,-151.0,0.00016438,2]
[381407721,1756187454860,-151.0,0.00016438,2]
[381407722,1756187454870,-500.0,0.00016438,2]
[381407723,1756187454880,-400.0,0.00016438,2]
[381407724,1756187454890,-151.0,0.00016438,2]
[381407725,1756187454900,-440.45366637,0.00016438,2]
[381407726,1756187454910,-151.0,0.00016438,2]
[381407727,1756187454920,-151.0,0.00016438,2]
[381407728,1756187454929,-151.0,0.00016438,2]
[381407729,1756187454939,-178.993412,0.00016438,2]
[381407730,1756187454949,-151.0,0.00016438,2]
[381407731,1756187454959,-602.69,0.00016438,2]
[381407732,1756187454969,-151.0,0.00016438,2]
[381407733,1756187454979,-400.0,0.00016438,2]
[381407734,1756187454991,-400.0,0.00016438,2]
[381407735,1756187455001,-400.0,0.00016438,2]
[381407736,1756187455010,-400.0,0.00016438,2]
[381407737,1756187455020,-151.0,0.00016438,2]
[381407738,1756187455030,-151.0,0.00016438,2]
[381407739,1756187455040,-151.0,0.00016438,2]
[381407740,1756187455050,-400.0,0.00016438,2]
[381407741,1756187455060,-494.45,0.00016438,2]
[381407742,1756187455069,-151.0,0.00016438,2]
[381407743,1756187455079,-1128.19,0.00016438,2]
[381407744,1756187455089,-400.0,0.00016438,2]
[381407745,1756187455099,-285.620675,0.00016438,2]
[381407746,1756187455109,-932.14,0.00016438,2]
[381407747,1756187455119,-916.56,0.00016438,2]
[381407748,1756187455128,-846.18,0.00016438,2]
[381407749,1756187455138,-400.0,0.00016438,2]
[381407750,1756187455147,-400.0,0.00016438,2]
[381407751,1756187455158,-552.16711988,0.00016438,2]
[381407752,1756187455167,-400.0,0.00016438,2]
[381407753,1756187455177,-400.0,0.00016438,2]
[381407754,1756187455187,-400.0,0.00016438,2]
[381407755,1756187455197,-1445.75,0.00016438,2]
[381407756,1756187455207,-400.0,0.00016438,2]
[381407757,1756187455216,-873.93,0.00016438,2]
[381407758,1756187455225,-465.57,0.00016438,2]
[381407759,1756187455733,-400.0,0.00016438,2]
[381407760,1756187455744,-400.0,0.00016438,2]
[381407761,1756187455754,-400.0,0.00016438,2]
[381407762,1756187455764,-587.99,0.00016438,2]
[381407763,1756187455774,-400.0,0.00016438,2]
[381407764,1756187455784,-400.0,0.00016438,2]
[381407765,1756187455794,-151.0,0.00016438,2]
[381407766,1756187455804,-400.0,0.00016438,2]
[381407767,1756187455814,-727.77,0.00016438,2]
[381407768,1756187455824,-852.08,0.00016438,2]
[381407769,1756187455834,-598.8,0.00016438,2]
[381407770,1756187455844,-400.0,0.00016438,2]
[381407771,1756187455854,-400.0,0.00016438,2]
[381407772,1756187455863,-400.0,0.00016438,2]
[381407773,1756187455874,-973.16,0.00016438,2]
[381407774,1756187455884,-999.47,0.00016438,2]
[381407775,1756187455894,-629.23,0.00016438,2]
[381407776,1756187455904,-579.22,0.00016438,2]
[381407777,1756187455914,-400.0,0.00016438,2]
[381407778,1756187455925,-400.0,0.00016438,2]
[381407779,1756187455937,-400.0,0.00016438,2]
[381407780,1756187455949,-805.95,0.00016438,2]
[381407781,1756187455960,-400.0,0.00016438,2]
[381407782,1756187455970,-400.0,0.00016438,2]
[381407783,1756187455980,-1354.95,0.00016438,2]
[381407784,1756187455990,-400.0,0.00016438,2]
[381407785,1756187456000,-1163.52,0.00016438,2]
[381407786,1756187456010,-400.0,0.00016438,2]
[381407787,1756187456019,-1002.56,0.00016438,2]
[381407788,1756187456030,-400.0,0.00016438,2]
[381407789,1756187456040,-1628.22,0.00016438,2]
[381407790,1756187456050,-401.04187202,0.00016438,2]
[381407791,1756187456061,-400.0,0.00016438,2]
[381407792,1756187456071,-400.0,0.00016438,2]
[381407793,1756187456081,-400.0,0.00016438,2]
[381407794,1756187456091,-493.68,0.00016438,2]
[381407795,1756187456100,-400.0,0.00016438,2]
[381407796,1756187456110,-1193.33,0.00016438,2]
[381407797,1756187456120,-7048.35,0.00016438,2]
[381407798,1756187456130,-1293.64,0.00016438,2]
[381407799,1756187456140,-400.0,0.00016438,2]
[381407800,1756187456150,-400.0,0.00016438,2]
[381407801,1756187456165,-400.0,0.00016438,2]
[381407802,1756187456175,-400.0,0.00016438,2]
[381407803,1756187456185,-400.0,0.00016438,2]
[381407804,1756187456195,-151.0,0.00016438,2]
[381407805,1756187456205,-400.0,0.00016438,2]
[381407806,1756187456214,-400.0,0.00016438,2]
[381407807,1756187456224,-400.0,0.00016438,2]
[381407808,1756187456235,-400.0,0.00016438,2]
[381407809,1756187456246,-151.0,0.00016438,2]
[381407810,1756187456258,-400.0,0.00016438,2]
[381407811,1756187456268,-151.0,0.00016438,2]
[381407812,1756187456278,-734.28,0.00016438,2]
[381407813,1756187456289,-1150.62,0.00016438,2]
[381407814,1756187456299,-400.5848031,0.00016438,2]
[381407815,1756187456309,-966.45,0.00016438,2]
[381407816,1756187456319,-400.0,0.00016438,2]
[381407817,1756187456329,-712.26,0.00016438,2]
[381407818,1756187456339,-1129.82,0.00016438,2]
[381407819,1756187456349,-1065.75,0.00016438,2]
[381407820,1756187456359,-400.0,0.00016438,2]
[381407821,1756187456369,-745.67,0.00016438,2]
[381407822,1756187456378,-719.16,0.00016438,2]
[381407823,1756187456388,-400.0,0.00016438,2]
[381407824,1756187456398,-151.0,0.00016438,2]
[381407825,1756187456407,-977.62,0.00016438,2]
[381407826,1756187456417,-593.98,0.00016438,2]
[381407827,1756187456427,-400.0,0.00016438,2]
[381407828,1756187456437,-682.16,0.00016438,2]
[381407829,1756187456447,-151.0,0.00016438,2]
[381407830,1756187456456,-400.0,0.00016438,2]
[381407831,1756187456467,-400.0,0.00016438,2]
[381407832,1756187456476,-151.0,0.00016438,2]
[381407833,1756187456488,-151.0,0.00016438,2]
[381407834,1756187456498,-400.0,0.00016438,2]
[381407835,1756187456508,-522.11,0.00016438,2]
[381407836,1756187456518,-151.0,0.00016438,2]
[381407837,1756187456527,-400.0,0.00016438,2]
[381407838,1756187456537,-400.0,0.00016438,2]
[381407839,1756187456548,-903.77,0.00016438,2]
[381407840,1756187456558,-671.23,0.00016438,2]
[381407841,1756187456569,-400.0,0.00016438,2]
[381407842,1756187456579,-604.74,0.00016438,2]
[381407843,1756187456594,-1282.34,0.00016438,2]
[381407844,1756187456604,-400.0,0.00016438,2]
[381407845,1756187456614,-400.0,0.00016438,2]
[381407846,1756187456624,-151.0,0.00016438,2]
[381407847,1756187456635,-400.0,0.00016438,2]
[381407848,1756187456645,-559.92,0.00016438,2]
[381407849,1756187456655,-400.0,0.00016438,2]
[381407850,1756187456664,-685.44,0.00016438,2]
[381407851,1756187456675,-400.0,0.00016438,2]
[381407852,1756187456685,-400.0,0.00016438,2]
[381407853,1756187456695,-502.11,0.00016438,2]
[381407854,1756187456705,-488.96,0.00016438,2]
[381407855,1756187456716,-1300.41,0.00016438,2]
[381407856,1756187456726,-151.0,0.00016438,2]
[381407857,1756187456737,-907.47,0.00016438,2]
[381407858,1756187456747,-415.2773753,0.00016438,2]
[381407859,1756187456757,-169.006403,0.00016438,2]
[381407860,1756187456767,-614.94,0.00016438,2]
[381407861,1756187456777,-436.07183747,0.00016438,2]
[381407862,1756187456787,-151.0,0.00016438,2]
[381407863,1756187456796,-400.0,0.00016438,2]
[381407864,1756187456806,-400.0,0.00016438,2]
[381407865,1756187456816,-400.0,0.00016438,2]
[381407866,1756187456825,-400.0,0.00016438,2]
[381407867,1756187456835,-151.0,0.00016438,2]
[381407868,1756187456845,-400.0,0.00016438,2]
[381407869,1756187456855,-151.0,0.00016438,2]
[381407870,1756187456864,-780.96,0.00016438,2]
[381407871,1756187456874,-1002.01,0.00016438,2]
[381407872,1756187456884,-500.0,0.00016438,2]
[381407873,1756187456894,-400.0,0.00016438,2]
[381407874,1756187456904,-840.61,0.00016438,2]
[381407875,1756187456913,-400.0,0.00016438,2]
[381407876,1756187456923,-214.674022,0.00016438,2]
[381407877,1756187456933,-500.0,0.00016438,2]
[381407878,1756187456942,-504.68744747,0.00016438,2]
[381407879,1756187456952,-425.77,0.00016438,2]
[381407880,1756187456962,-151.0,0.00016438,2]
[381407881,1756187456971,-589.71,0.00016438,2]
[381407882,1756187456980,-400.0,0.00016438,2]
[381407883,1756187456991,-400.0,0.00016438,2]
[381407884,1756187457001,-151.0,0.00016438,2]
[381407885,1756187457011,-1458.48,0.00016438,2]
[381407886,1756187457021,-400.0,0.00016438,2]
[381407887,1756187457031,-522.78,0.00016438,2]
[381407888,1756187457040,-581.34,0.00016438,2]
[381407889,1756187457050,-153.463517,0.00016438,2]
[381407890,1756187457061,-151.0,0.00016438,2]
[381407891,1756187457073,-1107.97,0.00016438,2]
[381407892,1756187457083,-400.0,0.00016438,2]
[381407893,1756187457093,-1080.95,0.00016438,2]
[381407894,1756187457103,-845.61,0.00016438,2]
[381407895,1756187457113,-151.0,0.00016438,2]
[381407896,1756187457123,-559.63,0.00016438,2]
[381407897,1756187457134,-917.4,0.00016438,2]
[381407898,1756187457143,-151.0,0.00016438,2]
[381407899,1756187457154,-848.81,0.00016438,2]
[381407900,1756187457164,-753.28,0.00016438,2]
[381407901,1756187457174,-1020.92,0.00016438,2]
[381407902,1756187457183,-184.374765,0.00016438,2]
[381407903,1756187457193,-400.0,0.00016438,2]
[381407904,1756187457203,-712.36,0.00016438,2]
[381407905,1756187457213,-471.44,0.00016438,2]
[381407906,1756187457223,-400.62123266,0.00016438,2]
[381407907,1756187457233,-994.58,0.00016438,2]
[381407908,1756187457243,-1135.23,0.00016438,2]
[381407909,1756187457252,-184.374765,0.00016438,2]
[381407910,1756187457264,-483.72,0.00016438,2]
[381407911,1756187457275,-184.374765,0.00016438,2]
[381407912,1756187457284,-1077.2,0.00016438,2]
[381407913,1756187457294,-1412.73,0.00016438,2]
[381407914,1756187457304,-691.8,0.00016438,2]
[381407915,1756187457314,-644.9,0.00016438,2]
[381407916,1756187457324,-400.0,0.00016438,2]
[381407917,1756187457335,-620.21,0.00016438,2]
[381407918,1756187457347,-151.0,0.00016438,2]
[381407919,1756187457359,-184.374765,0.00016438,2]
[381407920,1756187457371,-400.0,0.00016438,2]
[381407921,1756187457382,-400.0,0.00016438,2]
[381407922,1756187457392,-337.798632,0.00016438,2]
[381407923,1756187457402,-400.0,0.00016438,2]
[381407924,1756187457412,-179.05430434,0.00016438,2]
[381407925,1756187457423,-337.798632,0.00016438,2]
[381407926,1756187457434,-400.0,0.00016438,2]
[381407927,1756187457444,-400.0,0.00016438,2]
[381407928,1756187457454,-400.59502836,0.00016438,2]
[381407929,1756187457465,-400.0,0.00016438,2]
[381407930,1756187457474,-400.0,0.00016438,2]
[381407931,1756187457483,-400.0,0.00016438,2]
[381407932,1756187457493,-400.0,0.00016438,2]
[381407933,1756187457502,-400.0,0.00016438,2]
[381407934,1756187457513,-705.71,0.00016438,2]
[381407935,1756187457525,-1015.77,0.00016438,2]
[381407936,1756187457534,-1305.09,0.00016438,2]
[381407937,1756187457544,-468.36,0.00016438,2]
[381407938,1756187457553,-845.91,0.00016438,2]
[381407939,1756187457563,-444.72,0.00016438,2]
[381407940,1756187457572,-1337.46,0.00016438,2]
[381407941,1756187457581,-401.99543686,0.00016438,2]
[381407942,1756187457595,-545.77,0.00016438,2]
[381407943,1756187457605,-400.0,0.00016438,2]
[381407944,1756187457614,-400.0,0.00016438,2]
[381407945,1756187457624,-151.0,0.00016438,2]
[381407946,1756187457635,-151.0,0.00016438,2]
[381407947,1756187457644,-880.46,0.00016438,2]
[381407948,1756187457654,-400.0,0.00016438,2]
[381407949,1756187457665,-629.36,0.00016438,2]
[381407950,1756187457675,-400.0,0.00016438,2]
[381407951,1756187457686,-151.0,0.00016438,2]
[381407952,1756187457695,-696.49,0.00016438,2]
[381407953,1756187457706,-1307.64,0.00016438,2]
[381407954,1756187457716,-151.0,0.00016438,2]
[381407955,1756187457725,-1683.46,0.00016438,2]
[381407956,1756187457736,-151.0,0.00016438,2]
[381407957,1756187457745,-400.0,0.00016438,2]
[381407958,1756187457755,-400.0,0.00016438,2]
[381407959,1756187457765,-862.96,0.00016438,2]
[381407960,1756187457776,-447.3,0.00016438,2]
[381407961,1756187457786,-698.91,0.00016438,2]
[381407962,1756187457798,-400.0,0.00016438,2]
[381407963,1756187457808,-657.69,0.00016438,2]
[381407964,1756187457818,-622.1,0.00016438,2]
[381407965,1756187457828,-1017.46,0.00016438,2]
[381407966,1756187457838,-400.0,0.00016438,2]
[381407967,1756187457848,-869.42,0.00016438,2]
[381407968,1756187457857,-647.58,0.00016438,2]
[381407969,1756187457867,-539.19,0.00016438,2]
[381407970,1756187457878,-500.0,0.00016438,2]
[381407971,1756187457889,-400.0,0.00016438,2]
[381407972,1756187457899,-500.0,0.00016438,2]
[381407973,1756187457910,-500.0,0.00016438,2]
[381407974,1756187457921,-500.0,0.00016438,2]
[381407975,1756187457931,-500.0,0.00016438,2]
[381407976,1756187457942,-500.0,0.00016438,2]
[381407977,1756187457953,-155.548692,0.00016438,2]
[381407978,1756187457963,-215.91744665,0.00016438,2]
[381407979,1756187457972,-400.0,0.00016438,2]
[381407980,1756187457981,-995.28,0.00016438,2]
[381407981,1756187457993,-1075.5,0.00016438,2]
[381407982,1756187458003,-400.0,0.00016438,2]
[381407983,1756187458012,-400.0,0.00016438,2]
[381407984,1756187458022,-400.0,0.00016438,2]
[381407985,1756187458031,-400.0,0.00016438,2]
[381407986,1756187458041,-400.0,0.00016438,2]
[381407987,1756187458050,-151.0,0.00016438,2]
[381407988,1756187458060,-4618.2,0.00016438,2]
[381407989,1756187458070,-863.32,0.00016438,2]
[381407990,1756187458080,-1505.52,0.00016438,2]
[381407991,1756187458090,-400.0,0.00016438,2]
[381407992,1756187458099,-151.788525,0.00016438,2]
[381407993,1756187458108,-151.0,0.00016438,2]
[381407994,1756187458118,-400.0,0.00016438,2]
[381407995,1756187458128,-400.0,0.00016438,2]
[381407996,1756187458137,-153.934159,0.00016438,2]
[381407997,1756187458147,-400.0,0.00016438,2]
[381407998,1756187458157,-400.0,0.00016438,2]
[381407999,1756187458310,-400.0,0.00016438,2]
[381408000,1756187458320,-151.0,0.00016438,2]
[381408001,1756187458329,-400.0,0.00016438,2]
[381408002,1756187458339,-400.0,0.00016438,2]
[381408003,1756187458348,-400.0,0.00016438,2]
[381408004,1756187458357,-647.78,0.00016438,2]
[381408005,1756187458372,-405.01,0.00016438,2]
[381408006,1756187458387,-436.65,0.00016438,2]
[381408007,1756187458397,-400.0,0.00016438,2]
[381408008,1756187458407,-610.36,0.00016438,2]
[381408009,1756187458419,-1087.43,0.00016438,2]
[381408010,1756187458429,-446.2,0.00016438,2]
[381408011,1756187458440,-400.0,0.00016438,2]
[381408012,1756187458452,-400.0,0.00016438,2]
[381408013,1756187458461,-846.95,0.00016438,2]
[381408014,1756187458471,-400.0,0.00016438,2]
[381408015,1756187458481,-1767.76,0.00016438,2]
[381408016,1756187458492,-505.61,0.00016438,2]
[381408017,1756187458501,-1380.42,0.00016438,2]
[381408018,1756187458510,-585.97,0.00016438,2]
[381408019,1756187458521,-735.71,0.00016438,2]
[381408020,1756187458532,-1739.731729,0.00016438,2]
[381408021,1756187458542,-557.42,0.00016438,2]
[381408022,1756187458552,-400.0,0.00016438,2]
[381408023,1756187458563,-460.41932269,0.00016438,2]
[381408024,1756187458573,-1739.731729,0.00016438,2]
[381408025,1756187458585,-433.81,0.00016438,2]
[381408026,1756187458598,-368.141097,0.00016438,2]
[381408027,1756187458608,-1739.731729,0.00016438,2]
[381408028,1756187458619,-1761.72,0.00016438,2]
[381408029,1756187458630,-401.33774297,0.00016438,2]
[381408030,1756187458640,-368.141097,0.00016438,2]
[381408031,1756187458649,-1739.731729,0.00016438,2]
[381408032,1756187458658,-151.0,0.00016438,2]
[381408033,1756187458668,-459.1,0.00016438,2]
[381408034,1756187458678,-401.89354543,0.00016438,2]
[381408035,1756187458687,-368.141097,0.00016438,2]
[381408036,1756187458698,-400.0,0.00016438,2]
[381408037,1756187458709,-652.4,0.00016438,2]
[381408038,1756187458720,-151.0,0.00016438,2]
[381408039,1756187458732,-1179.57,0.00016438,2]
[381408040,1756187458741,-663.26,0.00016438,2]
[381408041,1756187458751,-400.0,0.00016438,2]
[381408042,1756187458761,-721.15,0.00016438,2]
[381408043,1756187458773,-368.141097,0.00016438,2]
[381408044,1756187458782,-400.0,0.00016438,2]
[381408045,1756187458791,-435.62,0.00016438,2]
[381408046,1756187458800,-765.94,0.00016438,2]
[381408047,1756187458810,-1064.56,0.00016438,2]
[381408048,1756187458819,-1342.44,0.00016438,2]
[381408049,1756187458829,-151.0,0.00016438,2]
[381408050,1756187458838,-280.421757,0.00016438,2]
[381408051,1756187458847,-975.36,0.00016438,2]
[381408052,1756187458856,-1572.36,0.00016438,2]
[381408053,1756187458866,-848.28,0.00016438,2]
[381408054,1756187458875,-151.0,0.00016438,2]
[381408055,1756187458885,-636.48,0.00016438,2]
[381408056,1756187458895,-151.0,0.00016438,2]
[381408057,1756187458904,-151.0,0.00016438,2]
[381408058,1756187458915,-151.0,0.00016438,2]
[381408059,1756187458926,-1316.75,0.00016438,2]
[381408060,1756187458936,-151.0,0.00016438,2]
[381408061,1756187458947,-217.346054,0.00016438,2]
[381408062,1756187458957,-1181.21,0.00016438,2]
[381408063,1756187458968,-278.76125069,0.00016438,2]
[381408064,1756187458978,-400.0,0.00016438,2]
[381408065,1756187458987,-151.0,0.00016438,2]
[381408066,1756187458997,-151.0,0.00016438,2]
[381408067,1756187459006,-217.346054,0.00016438,2]
[381408068,1756187459015,-400.0,0.00016438,2]
[381408069,1756187459025,-151.0,0.00016438,2]
[381408070,1756187459035,-151.0,0.00016438,2]
[381408071,1756187459044,-400.0,0.00016438,2]
[381408072,1756187459053,-400.0,0.00016438,2]
[381408073,1756187459063,-573.6,0.00016438,2]
[381408074,1756187459072,-151.0,0.00016438,2]
[381408075,1756187459082,-151.0,0.00016438,2]
[381408076,1756187459092,-151.0,0.00016438,2]
[381408077,1756187459101,-151.0,0.00016438,2]
[381408078,1756187459110,-400.0,0.00016438,2]
[381408079,1756187459120,-300.0,0.00016438,2]
[381408080,1756187459129,-217.346054,0.00016438,2]
[381408081,1756187459139,-151.0,0.00016438,2]
[381408082,1756187459148,-151.0,0.00016438,2]
[381408083,1756187459158,-217.346054,0.00016438,2]
[381408084,1756187459168,-416.55,0.00016438,2]
[381408085,1756187459177,-400.0,0.00016438,2]
[381408086,1756187459186,-847.69,0.00016438,2]
[381408087,1756187459195,-400.0,0.00016438,2]
[381408088,1756187459205,-151.0,0.00016438,2]
[381408089,1756187459214,-529.42,0.00016438,2]
[381408090,1756187459224,-412.69,0.00016438,2]
[381408091,1756187459233,-151.0,0.00016438,2]
[381408092,1756187459244,-1089.96,0.00016438,2]